bitfinex/quotes_ETHUSD_20220305
["timestamp","ask_amount","ask_price","bid_price","bid_amount"]
[1646521308871,2.2597,2663.7,2662.7,5.04096]
[1646521309072,0.00334191,2663.6,2662.7,1.54096]
[1646521309273,0.00334191,2663.6,2662.7,0.54096]
[1646521309775,1.8852,2663.7,2662.7,4.04096]
[1646521310171,1.8852,2663.7,2663.0,0.93887]
[1646521310172,0.00334197,2663.6,2663.0,0.93887]
[1646521310675,0.00334197,2663.6,2663.1,3.5]
[1646521310874,0.00334197,2663.6,2663.1,0.54]
[1646521311074,1.8852,2663.7,2663.1,0.54]
[1646521311075,1.8852,2663.7,2663.1,5.04]
[1646521311535,0.00334207,2663.6,2663.1,1.54]
[1646521311722,0.00334207,2663.6,2663.1,0.54]
[1646521312122,0.00334207,2663.6,2663.1,4.04]
[1646521312328,1.8852,2663.7,2663.1,5.04]
[1646521312523,0.0033421,2663.6,2663.1,1.54]
[1646521312724,0.0033421,2663.6,2663.1,0.54]
[1646521313125,0.0033421,2663.6,2662.9,0.1877]
[1646521313424,1.8852,2663.7,2662.9,0.1877]
[1646521313825,0.00334207,2663.6,2662.9,0.1877]
[1646521314425,0.00334207,2663.6,2662.8,3.41764]
[1646521314625,1.8852,2663.7,2662.8,2.41764]
[1646521314832,1.8852,2663.7,2662.8,3.41764]
[1646521315026,0.00334201,2663.6,2662.8,2.41764]
[1646521315270,0.00334201,2663.6,2662.8,3.41764]
[1646521315474,0.00334201,2663.6,2662.8,2.41764]
[1646521315676,0.00334201,2663.6,2662.8,3.41764]
[1646521315875,1.8852,2663.7,2662.8,2.41764]
[1646521316078,0.0016533,2663.6,2662.8,6.91764]
[1646521316476,0.0016533,2663.6,2662.8,3.41764]
[1646521316976,1.8852,2663.7,2662.8,3.41764]
[1646521317387,0.00334466,2663.6,2662.8,2.41764]
[1646521317578,0.00334466,2663.6,2662.8,3.41764]
[1646521317779,0.00334466,2663.6,2662.8,5.91764]
[1646521317977,0.00334466,2663.6,2662.8,6.91764]
[1646521318379,1.8852,2663.7,2662.9,3.5]
[1646521318578,0.00334466,2663.6,2663.0,0.54]
[1646521319423,1.8852,2663.7,2663.0,0.54]
[1646521319722,0.00334472,2663.6,2663.0,0.54]
[1646521320524,0.00334472,2663.6,2663.1,0.93881]
[1646521320725,1.8852,2663.7,2663.1,0.93881]
[1646521320726,1.8852,2663.7,2663.1,1.47881]
[1646521320927,0.00334463,2663.6,2663.1,1.47881]
[1646521321925,1.8852,2663.7,2663.1,1.47881]
[1646521322125,0.00334466,2663.6,2663.1,1.47881]
[1646521323175,1.8852,2663.7,2663.1,1.47881]
[1646521323377,0.00334466,2663.6,2663.1,1.47881]
[1646521324376,1.8852,2663.7,2663.1,1.47881]
[1646521324578,0.00344501,2663.6,2663.1,1.47881]
[1646521325579,1.8852,2663.7,2663.1,1.47881]
[1646521325778,0.00344501,2663.6,2663.1,1.47881]
[1646521325980,0.00344501,2663.6,2663.1,0.54]
[1646521326282,0.00344501,2663.6,2662.8,2.41764]
[1646521326733,1.8852,2663.7,2662.8,2.41764]
[1646521326935,0.00344501,2663.6,2662.8,2.41764]
[1646521327737,0.00194603,2663.6,2662.8,2.41764]
[1646521327937,1.8852,2663.7,2662.8,2.41764]
[1646521328138,0.00352298,2663.6,2662.8,2.41764]
[1646521328539,3.50352298,2663.6,2662.8,0.54]
[1646521328739,3.50352298,2663.6,2662.7,0.1877]
[1646521329139,3.5,2663.6,2662.7,0.1877]
[1646521329340,0.3745,2663.5,2662.7,0.1877]
[1646521329540,3.8745,2663.6,2662.7,0.1877]
[1646521330677,0.00165069,2663.4,2662.7,0.1877]
[1646521331379,3.8745,2663.6,2662.7,0.1877]
[1646521331779,0.00357823,2663.4,2662.7,0.1877]
[1646521332778,3.8745,2663.6,2662.7,0.1877]
[1646521332983,0.00357823,2663.4,2662.7,0.1877]
[1646521334034,3.8745,2663.6,2662.7,0.1877]
[1646521334226,0.00357823,2663.4,2662.7,0.1877]
[1646521335228,3.8745,2663.6,2662.7,0.1877]
[1646521335438,0.00357823,2663.4,2662.7,0.1877]
[1646521336234,3.8745,2663.6,2662.7,0.1877]
[1646521336433,3.8745,2663.6,2662.6,2.06548]
[1646521336633,0.00345747,2663.4,2662.6,1.87778]
[1646521337435,3.8745,2663.6,2662.6,1.87778]
[1646521337873,0.00345743,2663.4,2662.6,1.87778]
[1646521338674,3.8745,2663.6,2662.6,1.87778]
[1646521338874,0.00345743,2663.4,2662.6,1.87778]
[1646521339475,0.00345743,2663.4,2662.6,2.41778]
[1646521339974,1.8852,2663.7,2662.6,2.41778]
[1646521340176,0.00346151,2663.4,2662.6,2.41778]
[1646521341078,1.8852,2663.7,2662.6,2.41778]
[1646521341281,0.00346151,2663.4,2662.6,2.41778]
[1646521342326,1.8852,2663.7,2662.6,2.41778]
[1646521342525,0.00346151,2663.4,2662.6,2.41778]
[1646521343126,0.00346151,2663.4,2662.6,2.60548]
[1646521343330,0.00346151,2663.4,2662.6,3.60548]
[1646521343526,1.8852,2663.7,2662.6,3.60548]
[1646521343727,0.00333675,2663.4,2662.6,3.60548]
[1646521344628,1.8852,2663.7,2662.6,3.60548]
[1646521346083,1.8852,2663.7,2662.6,3.59931187]
[1646521346282,0.00333419,2663.4,2662.6,3.59931187]
[1646521346681,0.00333419,2663.4,2662.6,3.59825622]
[1646521347084,1.8852,2663.7,2662.6,3.59825622]
[1646521347284,0.00346157,2663.4,2662.6,3.59825622]
[1646521348286,1.8852,2663.7,2662.6,3.59825622]
[1646521348685,0.00346157,2663.4,2662.6,3.59825622]
[1646521349127,0.00346157,2663.4,2662.6,0.61491158]
[1646521349328,0.5,2663.3,2662.5,0.93888]
[1646521349534,0.5,2663.3,2661.6,2.7345]
[1646521349535,3.5,2663.2,2661.6,2.7345]
[1646521349730,3.5,2663.2,2661.8,0.93928]
[1646521349731,1.91367173,2663.1,2661.8,0.93928]
[1646521349936,0.3745,2662.9,2661.6,2.7345]
[1646521350128,0.3745,2662.9,2661.2,0.98152277]
[1646521350129,0.3745,2662.7,2661.4,0.1878]
[1646521350335,0.3745,2662.5,2661.4,0.1878]
[1646521350535,0.3745,2662.5,2661.2,0.00096]
[1646521350536,0.3745,2662.3,2661.2,0.00096]
[1646521350739,0.3745,2662.1,2661.0,0.18866]
[1646521350935,0.3745,2661.9,2661.1,0.00096]
[1646521351147,0.3745,2661.9,2660.7,0.00605]
[1646521351148,0.3745,2661.7,2660.7,0.00701]
[1646521351334,0.00096,2661.1,2660.7,0.001779]
[1646521351536,0.00096,2661.1,2660.7,0.000819]
[1646521354586,0.00096,2661.1,2660.8,0.00338991]
[1646521355489,0.00096,2661.1,2660.7,0.000819]
[1646521355694,0.00096,2661.1,2660.8,0.00338987]
[1646521356727,0.00096,2661.1,2660.7,0.000819]
[1646521356928,0.00096,2661.1,2660.7,0.011281]
[1646521359330,0.00096,2661.1,2660.8,0.00346222]
[1646521360381,0.00096,2661.1,2660.7,0.011281]
[1646521360579,0.00096,2661.1,2660.8,0.00346218]
[1646521361587,0.00096,2661.1,2660.7,0.011281]
[1646521361588,0.18886,2661.1,2660.7,0.011281]
[1646521361782,0.18886,2661.1,2660.8,0.00346218]
[1646521362381,11.47,2661.0,2660.8,6.218e-05]
[1646521362581,14.97,2660.9,2660.8,6.218e-05]
[1646521362782,14.97,2660.9,2660.7,0.011281]
[1646521362981,3.5,2660.8,2660.7,0.011281]
[1646521363383,14.97,2660.8,2660.7,0.011281]
[1646521363582,4.5,2660.8,2660.7,0.011281]
[1646521363882,15.97,2660.8,2660.7,0.011281]
[1646521365032,15.97,2660.8,2660.7,8.1e-05]
[1646521367438,4.43785948,2660.8,2660.7,8.1e-05]
[1646521368480,15.90785948,2660.8,2660.7,8.1e-05]
[1646521368881,4.43785948,2660.8,2660.7,8.1e-05]
[1646521369479,15.90785948,2660.8,2660.7,8.1e-05]
[1646521370080,4.43785948,2660.8,2660.7,8.1e-05]
[1646521371082,4.81235948,2660.8,2660.3,0.03324332]
[1646521371283,4.81235948,2660.8,2660.6,0.00332469]
[1646521371284,15.90785948,2660.8,2660.6,0.00332469]
[1646521371538,14.97,2660.7,2660.6,0.00332469]
[1646521371729,7.2348,2660.9,2660.6,0.00332469]
[1646521371933,1.0,2660.7,2660.6,0.00332469]
[1646521372127,1.1905,2660.8,2660.6,0.00332469]
[1646521372327,1.565,2660.8,2660.3,0.03324332]
[1646521372529,1.1905,2660.8,2660.6,0.00332469]
[1646521373429,1.565,2660.8,2660.3,0.03324332]
[1646521373829,1.1905,2660.8,2660.6,0.00332472]
[1646521374630,1.1905,2660.8,2660.3,0.03324332]
[1646521375031,4.7946,2660.9,2660.6,0.00332835]
[1646521375291,0.00096,2661.1,2660.6,0.00332835]
[1646521375487,0.00096,2661.1,2660.6,0.37782835]
[1646521375888,0.00096,2661.1,2660.6,0.3745]
[1646521376087,0.00096,2661.1,2660.7,0.54]
[1646521376292,2.0221,2662.0,2660.8,3.8745]
[1646521376491,2.0221,2662.0,2660.9,1.04]
[1646521376492,1.8342,2662.0,2660.9,1.04]
[1646521376691,1.8342,2662.0,2661.0,3.5]
[1646521376888,1.8342,2662.0,2661.1,0.54]
[1646521377491,2.9709,2662.3,2661.3,0.93932]
[1646521377691,0.1877,2662.3,2661.4,4.04]
[1646521378091,0.1877,2663.0,2661.4,4.04]
[1646521378793,0.00332343,2662.7,2661.4,4.04]
[1646521379045,0.00332343,2662.7,2661.4,5.04]
[1646521379233,0.00332343,2662.7,2661.7,0.9393]
[1646521379435,0.1877,2662.8,2661.7,0.9393]
[1646521379834,0.00332355,2662.7,2661.7,0.9393]
[1646521380034,0.00332355,2662.7,2661.7,4.4393]
[1646521380239,0.00332355,2662.7,2661.7,5.4393]
[1646521380440,0.00332355,2662.7,2661.8,0.00795373]
[1646521380640,0.1877,2663.0,2661.9,0.9145]
[1646521380939,0.00332365,2662.7,2662.2,0.93912]
[1646521381939,3.0867,2663.1,2662.2,0.93912]
[1646521382146,0.00332378,2662.7,2662.2,0.93912]
[1646521383282,3.0867,2663.1,2662.2,0.93912]
[1646521383283,2.899,2663.1,2662.2,0.93912]
[1646521383580,0.00332378,2662.7,2662.2,0.93912]
[1646521384279,2.899,2663.1,2662.2,0.93912]
[1646521384687,0.00332378,2662.7,2662.2,0.93912]
[1646521385484,2.899,2663.1,2662.2,0.93912]
[1646521385888,0.00332376,2662.7,2662.2,0.93912]
[1646521386539,0.00332376,2662.7,2662.2,1.47912]
[1646521386730,2.899,2663.1,2662.2,1.47912]
[1646521386929,0.00332376,2662.7,2662.2,1.47912]
[1646521387731,0.00332376,2662.7,2662.2,0.54]
[1646521388529,0.14102376,2663.0,2662.2,0.54]
[1646521388933,0.14102376,2663.0,2662.0,2.87814]
[1646521390132,0.14102376,2663.0,2662.0,1.87814]
[1646521390382,0.14102376,2663.0,2662.0,2.87814]
[1646521390582,0.00164676,2662.8,2662.0,1.87814]
[1646521390783,0.00164676,2662.8,2662.0,2.87814]
[1646521390985,0.00164676,2662.8,2662.0,1.87814]
[1646521391183,0.00164676,2662.8,2662.0,2.87814]
[1646521391386,0.00164676,2662.8,2662.0,1.87814]
[1646521391683,3.0867,2663.1,2662.0,1.87814]
[1646521391684,3.0867,2663.1,2662.0,2.87814]
[1646521391885,0.0016467,2662.8,2662.0,1.87814]
[1646521392082,0.0016467,2662.8,2662.0,2.87814]
[1646521392284,0.0016467,2662.8,2662.0,1.87814]
[1646521392488,0.0016467,2662.8,2662.0,2.87814]
[1646521392684,3.0867,2663.1,2662.0,2.87814]
[1646521392884,3.0867,2663.1,2662.0,1.87814]
[1646521393086,0.00355658,2662.8,2662.0,2.87814]
[1646521393288,0.00355658,2662.8,2662.0,1.87814]
[1646521393583,0.00355658,2662.8,2662.0,2.87814]
[1646521393783,0.00355658,2662.8,2662.0,1.87814]
[1646521394039,3.0867,2663.1,2662.0,2.87814]
[1646521394230,0.0033078,2662.8,2661.9,0.54]
[1646521395233,3.4612,2663.1,2661.9,0.54]
[1646521395438,0.00330777,2662.8,2661.9,0.54]
[1646521396441,3.4612,2663.1,2661.9,0.54]
[1646521396639,0.00164685,2662.8,2661.9,0.54]
[1646521397438,0.3745,2663.1,2661.9,0.54]
[1646521397877,0.00164685,2662.8,2661.9,0.54]
[1646521398678,3.157,2663.1,2661.9,0.54]
[1646521398977,0.00338519,2662.8,2661.9,0.54]
[1646521399979,3.157,2663.1,2661.9,0.54]
[1646521400183,0.00338519,2662.8,2661.9,0.54]
[1646521401183,3.157,2663.1,2661.9,0.54]
[1646521401384,0.00338519,2662.8,2661.9,0.54]
[1646521402431,3.157,2663.1,2661.9,0.54]
[1646521402634,0.00338519,2662.8,2661.9,0.54]
[1646521403534,3.157,2663.1,2661.9,0.54]
[1646521403935,0.00321848,2662.8,2661.9,0.54]
[1646521404734,3.157,2663.1,2661.9,0.54]
[1646521404938,0.00321848,2662.8,2661.9,0.54]
[1646521405988,3.157,2663.1,2661.9,0.54]
[1646521406190,0.00321848,2662.8,2661.9,0.54]
[1646521407089,3.157,2663.1,2661.9,0.54]
[1646521407489,0.00323146,2662.8,2661.9,0.54]
[1646521408290,3.157,2663.1,2661.9,0.54]
[1646521408590,0.00323146,2662.8,2661.9,0.54]
[1646521409529,3.157,2663.1,2661.9,0.54]
[1646521409728,0.00323146,2662.8,2661.9,0.54]
[1646521410741,3.157,2663.1,2661.9,0.54]
[1646521411135,0.00311916,2662.8,2661.9,0.54]
[1646521411934,3.157,2663.1,2661.9,0.54]
[1646521412135,0.00311916,2662.8,2661.9,0.54]
[1646521413284,3.157,2663.1,2661.9,0.54]
[1646521413479,0.00311916,2662.8,2661.9,0.54]
[1646521414485,3.157,2663.1,2661.9,0.54]
[1646521414704,0.00334049,2662.8,2661.9,0.54]
[1646521415492,3.157,2663.1,2661.9,0.54]
[1646521415892,0.00334049,2662.8,2661.9,0.54]
[1646521416831,0.3745,2662.9,2661.9,1.4792]
[1646521417030,0.00334049,2662.8,2661.9,1.4792]
[1646521418032,0.3745,2662.8,2661.9,1.4792]
[1646521418231,0.37784319,2662.8,2661.9,1.4792]
[1646521419034,1.53956029,2662.7,2661.9,1.4792]
[1646521422885,1.53956029,2662.7,2661.9,0.54]
[1646521423291,0.37773596,2662.8,2661.9,0.54]
[1646521423292,0.00323596,2662.8,2662.1,1.31365]
[1646521423495,0.00323596,2662.8,2662.2,4.04]
[1646521423887,0.00323596,2662.8,2662.2,5.04]
[1646521424131,2.8478,2663.6,2662.2,5.04]
[1646521425333,2.8478,2663.6,2662.6,0.93895]
[1646521426735,0.00332212,2663.2,2662.6,0.93895]
[1646521427536,2.8478,2663.6,2662.6,0.93895]
[1646521427790,0.00332225,2663.0,2662.6,0.93895]
[1646521428797,2.8478,2663.6,2662.6,0.93895]
[1646521428994,0.00338794,2662.9,2662.6,0.93895]
[1646521429993,2.8478,2663.6,2662.6,0.93895]
[1646521430194,2.8478,2663.6,2662.5,0.54]
[1646521430399,0.3745,2663.5,2662.1,1.0]
[1646521430600,0.3745,2663.5,2662.1,0.54]
[1646521430601,2.37678933,2663.5,2662.1,0.54]
[1646521430802,2.37678933,2663.5,2662.0,2.724]
[1646521431104,12.53228945,2663.3,2661.8,0.00795373]
[1646521431302,11.8445,2663.1,2661.8,0.00795373]
[1646521431539,11.8445,2663.1,2661.8,0.01134044]
[1646521431540,0.00338529,2662.9,2661.8,0.01134044]
[1646521431931,0.00338529,2662.9,2661.9,0.1878]
[1646521432331,3.3484,2663.1,2661.9,0.1878]
[1646521432533,0.00343615,2662.8,2661.9,0.1878]
[1646521433533,3.3484,2663.1,2661.9,0.1878]
[1646521433936,0.00343612,2662.8,2661.9,0.1878]
[1646521434733,3.3484,2663.1,2661.9,0.1878]
[1646521435135,0.00343612,2662.8,2661.9,0.1878]
[1646521435987,14.8184,2663.1,2661.9,0.1878]
[1646521436188,0.00332139,2662.8,2661.9,0.1878]
[1646521437191,11.8445,2662.9,2661.3,3.88112]
[1646521437392,3.9739,2663.1,2661.8,0.00332267]
[1646521437393,11.8445,2662.7,2661.8,0.00332267]
[1646521437591,14.6846,2662.7,2661.8,0.00332267]
[1646521438295,11.8445,2662.5,2661.8,0.00332267]
[1646521438492,12.684,2662.5,2661.1,0.00096]
[1646521438691,12.684,2662.5,2661.8,0.00332261]
[1646521438692,0.54,2662.4,2661.8,0.00332261]
[1646521438894,11.8445,2662.3,2661.8,0.00332261]
[1646521439141,11.47,2662.1,2661.8,0.00332261]
[1646521439335,14.4187,2662.1,2661.8,2.261e-05]
[1646521439535,11.47,2661.9,2660.7,0.00096]
[1646521439732,0.3745,2661.8,2660.7,0.00096]
[1646521439933,0.3745,2661.6,2660.7,0.00096]
[1646521443382,0.3745,2661.6,2661.0,0.00355324]
[1646521443585,0.3745,2661.6,2660.6,0.23868886]
[1646521443785,0.3745,2661.6,2660.7,0.93966]
[1646521443983,0.3745,2661.7,2660.7,0.93966]
[1646521447636,0.3745,2661.7,2660.8,0.00096]
[1646521448232,0.3745,2661.7,2660.9,0.00331534]
[1646521449232,11.8445,2661.7,2660.8,0.00096]
[1646521449432,0.3745,2661.7,2660.9,0.00339525]
[1646521450282,11.8445,2661.7,2660.9,0.00339525]
[1646521450484,2.82929401,2661.8,2660.8,3.50096]
[1646521450485,2.8259,2661.8,2660.8,3.50096]
[1646521450688,2.82929401,2661.8,2661.1,0.93953]
[1646521450888,2.82929401,2661.8,2661.2,3.5]
[1646521450889,0.00339401,2661.8,2661.2,3.5]
[1646521451087,0.00339401,2661.8,2661.1,0.00096]
[1646521451286,0.00339401,2661.8,2661.3,0.54]
[1646521451485,0.00339401,2661.8,2661.4,0.54]
[1646521451687,0.1877,2662.1,2661.5,0.54]
[1646521451886,0.00339409,2661.8,2661.6,4.04]
[1646521452087,0.00339409,2661.8,2661.7,1.87844]
[1646521452391,0.00339409,2661.8,2661.7,2.41844]
[1646521452588,0.00339409,2661.8,2661.7,5.91844]
[1646521452786,4.8596,2663.1,2661.7,6.91844]
[1646521452989,1.53954325,2663.0,2661.7,7.29294]
[1646521453188,0.00321288,2661.9,2661.7,7.48340141]
[1646521453391,4.0251,2663.6,2661.7,7.48340141]
[1646521453392,3.0899,2663.5,2662.0,0.3745]
[1646521453587,1.72705259,2663.4,2662.3,1.3134]
[1646521453790,0.1877,2663.4,2662.4,0.54]
[1646521454234,1.9022,2663.5,2662.6,1.87776]
[1646521454433,0.1877,2663.7,2662.7,4.4145]
[1646521454639,0.1877,2663.7,2662.7,5.35341]
[1646521454837,7.37,2663.8,2662.7,6.35341]
[1646521455041,1.9313,2664.1,2662.9,0.3745]
[1646521455236,1.9313,2664.1,2663.3,0.93848]
[1646521455440,0.1877,2664.3,2663.3,0.93848]
[1646521455441,0.1877,2664.3,2663.4,0.54]
[1646521455641,0.1877,2664.3,2663.6,0.93848]
[1646521455841,0.1877,2664.3,2663.7,0.54]
[1646521456042,0.1875,2664.5,2663.7,0.54]
[1646521456240,1.53880035,2664.4,2663.7,0.54]
[1646521456440,0.1875,2664.3,2663.7,0.54]
[1646521456640,0.0035522,2664.2,2663.7,0.54]
[1646521457243,0.0035522,2664.2,2663.8,3.5]
[1646521457442,0.0035522,2664.2,2663.7,0.54]
[1646521457649,1.53879869,2664.5,2663.7,0.54]
[1646521457885,4.7398,2664.6,2664.0,0.93843]
[1646521457886,1.9313,2664.6,2664.0,0.93843]
[1646521458085,2.30902888,2665.1,2664.1,4.04]
[1646521458086,0.1875,2665.0,2664.1,4.04]
[1646521458286,1.90688945,2665.6,2664.1,4.04]
[1646521458486,1.53849861,2665.5,2664.1,5.23046141]
[1646521458785,1.53849861,2665.5,2664.2,0.3745]
[1646521459001,1.53849861,2665.5,2664.3,4.04]
[1646521459184,0.00164484,2665.0,2664.3,5.04]
[1646521459388,0.00164484,2665.0,2664.3,7.85429]
[1646521460084,1.53849861,2665.5,2664.3,7.85429]
[1646521460291,0.00164484,2664.8,2664.3,7.85429]
[1646521460490,0.00164484,2664.8,2664.3,1.54]
[1646521460693,0.00164484,2664.8,2664.3,0.54]
[1646521460992,0.00164484,2664.8,2664.0,1.54]
[1646521461190,0.3745,2665.2,2664.0,0.54]
[1646521461392,1.53849861,2665.1,2664.0,0.54]
[1646521461632,0.00355474,2664.7,2664.0,0.54]
[1646521462432,0.3745,2665.2,2664.0,0.54]
[1646521462635,0.562,2665.2,2664.0,0.54]
[1646521462836,0.00355488,2664.5,2664.0,0.54]
[1646521463533,0.00355488,2664.5,2664.1,0.92371044]
[1646521463735,1.08888112,2664.6,2664.1,0.92371044]
[1646521463934,0.00355495,2664.4,2664.1,0.92371044]
[1646521464935,2.6807,2665.4,2664.1,0.92371044]
[1646521464936,0.1875,2665.3,2664.1,0.92371044]
[1646521465138,0.00355495,2664.4,2664.1,0.92371044]
[1646521465396,0.00355495,2664.4,2664.1,1.86216044]
[1646521466191,1.10441417,2665.1,2664.1,0.93845]
[1646521466392,0.00343497,2664.4,2663.9,0.54]
[1646521466595,0.00343497,2664.4,2663.4,1.54]
[1646521466797,0.00343497,2664.4,2663.1,0.19046141]
[1646521466798,0.01617745,2664.4,2663.1,0.19046141]
[1646521466994,0.01617745,2664.4,2662.3,2.8204]
[1646521466995,11.8445,2664.3,2662.3,2.8204]
[1646521467198,11.8445,2664.1,2662.3,2.8204]
[1646521467393,1.05606692,2662.7,2662.3,2.8204]
[1646521467594,2.53496834,2662.7,2662.2,1.00334214]
[1646521467796,2.53496834,2662.7,2661.7,1.0]
[1646521468000,3.5,2662.6,2661.6,0.00343831]
[1646521468197,15.3445,2662.6,2661.6,0.00343831]
[1646521468396,15.3445,2662.6,2661.7,0.1878]
[1646521468594,16.3445,2662.6,2661.5,0.1877]
[1646521469040,0.00343642,2662.2,2661.6,0.0034373]
[1646521469232,0.37793642,2662.2,2661.6,0.0034373]
[1646521469533,3.5,2662.1,2661.6,0.0034373]
[1646521469830,3.5,2662.1,2661.5,0.1877]
[1646521470031,1.17931682,2662.0,2661.5,0.1877]
[1646521470234,3.5,2661.9,2661.4,0.19084352]
[1646521472536,0.98467017,2661.5,2661.4,0.19084352]
[1646521483091,0.0031063,2662.0,2661.4,0.19084352]
[1646521484233,1.15069202,2661.7,2661.4,0.19084352]
[1646521484434,1.15069202,2661.7,2661.6,0.00310912]
[1646521485337,1.15069202,2661.7,2661.4,0.19084352]
[1646521485538,1.15069202,2661.7,2661.5,0.00311673]
[1646521486536,1.15069202,2661.7,2661.4,0.19084352]
[1646521486937,1.15069202,2661.7,2661.5,0.00311676]
[1646521487781,1.15069202,2661.7,2661.4,0.19084352]
[1646521487984,1.15069202,2661.7,2661.5,0.00311631]
[1646521488789,1.14915778,2661.7,2661.5,0.00311631]
[1646521488985,1.14915778,2661.7,2661.4,0.19084352]
[1646521489186,1.14915778,2661.7,2661.5,0.00311559]
[1646521490188,3.5,2661.6,2661.4,0.19084352]
[1646521490393,0.3745,2661.5,2660.7,0.00096]
[1646521490595,0.3745,2661.5,2660.4,0.07295661]
[1646521490991,0.3745,2661.3,2660.4,0.07295661]
[1646521491406,1.03904817,2660.7,2660.4,0.00096]
[1646521491643,2.51824842,2660.7,2660.3,0.03324332]
[1646521492841,2.51824842,2660.7,2660.4,0.00333649]
[1646521493641,2.51824842,2660.7,2660.3,0.03324332]
[1646521493845,6.01824842,2660.7,2660.3,0.03324332]
[1646521494045,6.01824842,2660.7,2660.4,0.00333645]
[1646521495043,6.01824842,2660.7,2660.3,0.03324332]
[1646521495311,6.01824842,2660.7,2660.4,0.00338602]
[1646521495715,6.01824842,2660.7,2660.4,0.00179604]
[1646521496214,2.51824842,2660.7,2660.3,0.03324332]
[1646521496413,6.01824842,2660.7,2660.3,0.03324332]
[1646521496617,4.53904817,2660.7,2660.3,0.03324332]
[1646521497015,1.03904817,2660.7,2660.3,0.03324332]
[1646521497617,1.03904817,2660.7,2660.4,0.00180218]
[1646521498615,1.03904817,2660.7,2660.3,1.11020486]
[1646521498816,1.03904817,2660.7,2660.4,0.00344429]
[1646521500743,4.9489,2661.1,2660.4,0.00344429]
[1646521500946,1.8527,2661.1,2660.3,0.03324332]
[1646521501145,1.8527,2661.1,2660.4,0.00330697]
[1646521501345,1.8527,2661.1,2660.5,0.54]
[1646521502147,1.8527,2661.1,2660.8,1.14777129]
[1646521502346,0.1879,2661.5,2660.9,0.93956]
[1646521502548,0.1879,2661.5,2660.9,0.93796157]
[1646521503385,2.9209,2661.6,2660.9,0.93796157]
[1646521503583,3.95815982,2661.6,2660.9,0.93796157]
[1646521505391,3.95815982,2661.6,2661.2,1.14312996]
[1646521505615,0.1877,2661.6,2661.2,1.14312996]
[1646521505791,0.1877,2661.7,2660.9,0.93796157]
[1646521505991,0.5656329,2661.8,2660.9,0.93796157]
[1646521506944,0.5622,2661.8,2660.9,0.93796157]
[1646521507141,1.06153759,2661.6,2661.1,1.20521771]
[1646521507741,1.43603759,2661.6,2661.1,1.20521771]
[1646521507940,1.06153759,2661.6,2661.1,1.20521771]
[1646521508144,1.06153759,2661.6,2660.8,0.00096]
[1646521508641,1.43603759,2661.6,2660.8,0.00096]
[1646521509244,1.43603759,2661.6,2660.7,0.00331884]
[1646521509245,1.09017598,2661.1,2660.7,0.00331884]
[1646521509449,1.09017598,2661.1,2660.6,0.93855205]
[1646521509645,1.09017598,2661.1,2660.7,0.00331875]
[1646521510289,0.3745,2661.4,2660.7,0.00331875]
[1646521510697,0.3745,2661.4,2660.3,0.03420332]
[1646521510892,0.3745,2661.4,2660.7,0.00331856]
[1646521511293,0.95484905,2661.1,2660.7,0.00331856]
[1646521511694,1.47903475,2661.6,2660.6,0.86478114]
[1646521511893,1.4321,2661.7,2660.7,0.00096]
[1646521512101,1.2444,2661.7,2660.7,0.00427246]
[1646521512294,1.6189,2661.7,2660.7,0.00427246]
[1646521512992,0.88498984,2661.5,2660.7,0.00096]
[1646521513192,0.88498984,2661.5,2660.7,0.00427264]
[1646521514235,3.8745,2661.4,2660.7,0.00096]
[1646521514436,3.8745,2661.4,2660.7,0.00331258]
[1646521514837,4.8745,2661.4,2660.7,0.00331258]
[1646521515238,4.0622,2661.4,2660.7,0.00331258]
[1646521515445,0.87640487,2660.9,2660.3,0.03324332]
[1646521515642,4.0622,2661.4,2660.7,0.00331297]
[1646521515643,3.8745,2661.4,2660.7,0.00331297]
[1646521515841,0.3745,2661.4,2660.7,0.00331297]
[1646521516042,1.85345853,2661.6,2660.7,0.00331297]
[1646521516242,0.3745,2661.6,2660.7,0.00331297]
[1646521516642,0.3745,2661.6,2660.3,1.91352332]
[1646521516842,0.99401898,2661.4,2660.8,0.92666071]
[1646521518088,7.0709,2661.7,2660.8,0.92666071]
[1646521518286,1.2444,2661.7,2660.8,0.92666071]
[1646521519087,0.90424671,2661.6,2660.8,0.92666071]
[1646521521743,1.2444,2661.7,2661.2,0.92339469]
[1646521521942,0.19101169,2661.8,2661.2,0.92339469]
[1646521522342,0.19101169,2661.8,2660.7,0.00427303]
[1646521522544,0.5622,2661.8,2660.7,0.00096]
[1646521522741,0.56551188,2661.8,2660.7,0.00427322]
[1646521523340,0.56408823,2661.8,2660.7,0.00427322]
[1646521523541,0.99321609,2661.5,2660.9,0.96419135]
[1646521523742,0.3745,2661.8,2660.9,0.96419135]
[1646521523943,0.37781172,2661.8,2660.9,0.96419135]
[1646521524541,0.00331172,2661.8,2660.9,0.96419135]
[1646521524742,0.96572647,2661.8,2660.9,0.96419135]
[1646521524947,0.96241475,2661.8,2660.9,0.96419135]
[1646521525147,0.96572653,2661.8,2660.9,0.96419135]
[1646521525594,4.46572653,2661.8,2660.9,0.96419135]
[1646521525796,4.46572653,2661.8,2661.3,0.89928017]
[1646521526195,4.46241475,2661.8,2661.3,0.89928017]
[1646521526495,4.46572653,2661.8,2661.3,0.89928017]
[1646521526696,0.96572653,2661.8,2661.3,0.89928017]
[1646521526896,4.46572653,2661.8,2660.7,0.00427312]
[1646521527295,4.46241475,2661.8,2660.7,0.00096]
[1646521527798,4.46572647,2661.8,2660.7,0.00427306]
[1646521527995,0.96572647,2661.8,2660.7,0.00427306]
[1646521528193,0.96572647,2661.8,2661.1,0.9526155]
[1646521528694,4.46241475,2661.8,2661.1,0.9526155]
[1646521528898,4.46572647,2661.8,2661.1,0.9526155]
[1646521529535,0.96572647,2661.8,2661.1,0.9526155]
[1646521529737,0.96241475,2661.8,2661.1,0.9526155]
[1646521530139,0.9657266,2661.8,2661.1,0.9526155]